bitfinex-derivatives/quotes_BTCF0:USTF0_20250106
["timestamp","ask_amount","ask_price","bid_price","bid_amount"]
[1736160415285,0.15060645,98864.0,98863.0,1.480592]
[1736160416986,0.050591,98866.0,98865.0,0.050591]
[1736160417186,0.050591,98866.0,98865.0,0.411391]
[1736160417987,0.050591,98866.0,98865.0,0.3608]
[1736160418292,0.050591,98866.0,98845.0,0.3608]
[1736160418293,0.050601,98846.0,98845.0,0.3608]
[1736160418998,0.050602,98843.0,98842.0,0.050603]
[1736160419295,0.050602,98843.0,98837.0,0.30243722]
[1736160419491,0.050605,98838.0,98837.0,0.35304222]
[1736160419691,0.050605,98838.0,98837.0,0.050605]
[1736160420595,0.050605,98838.0,98837.0,0.055605]
[1736160420793,0.050603,98843.0,98842.0,0.050601]
[1736160423003,0.050603,98843.0,98842.0,0.051601]
[1736160423296,0.050603,98843.0,98842.0,0.054601]
[1736160424699,0.0648,98851.0,98842.0,0.054601]
[1736160424700,0.0326,98851.0,98842.0,0.054601]
[1736160424892,0.050598,98853.0,98852.0,0.050597]
[1736160425503,0.050598,98853.0,98852.0,1.480597]
[1736160426297,0.051598,98853.0,98852.0,1.480597]
[1736160426895,0.052598,98853.0,98852.0,1.480597]
[1736160427501,0.413398,98853.0,98852.0,1.480597]
[1736160427701,0.050602,98844.0,98843.0,0.050602]
[1736160429299,0.050602,98844.0,98843.0,0.053602]
[1736160431296,0.0316,98851.0,98843.0,0.053602]
[1736160431502,0.0506,98848.0,98847.0,0.050599]
[1736160432096,0.05155801,98852.0,98851.0,0.050598]
[1736160432403,0.050598,98852.0,98851.0,0.050598]
[1736160433199,0.001,98852.0,98846.0,0.3608]
[1736160433502,0.002,98852.0,98851.0,0.050598]
[1736160434408,0.001,98852.0,98851.0,0.050598]
[1736160435209,0.050598,98853.0,98852.0,0.050598]
[1736160436198,0.050598,98853.0,98847.0,0.0506]
[1736160436504,0.050598,98853.0,98852.0,0.050598]
[1736160436695,0.051598,98853.0,98852.0,0.050598]
[1736160436894,0.052598,98853.0,98852.0,0.050598]
[1736160437202,0.051598,98853.0,98852.0,0.050598]
[1736160439100,0.052598,98853.0,98852.0,0.050598]
[1736160439295,0.413398,98853.0,98852.0,0.050598]
[1736160439616,0.050602,98847.0,98846.0,0.050601]
[1736160442302,0.050602,98847.0,98846.0,0.051601]
[1736160446211,0.15097558,98855.0,98846.0,0.412401]
[1736160446410,0.15097558,98855.0,98854.0,0.050597]
[1736160446716,0.15097558,98855.0,98854.0,1.480597]
[1736160447014,0.15097558,98859.0,98858.0,0.050595]
[1736160448205,0.04920619,98860.0,98854.0,1.43056]
[1736160448401,0.04920619,98860.0,98859.0,0.050594]
[1736160450010,0.04920619,98860.0,98859.0,0.051594]
[1736160450519,0.04920619,98860.0,98859.0,0.412394]
[1736160450906,0.04920619,98860.0,98859.0,0.413394]
[1736160451406,0.15107493,98863.0,98862.0,0.050593]
[1736160452814,0.15107493,98863.0,98862.0,0.051593]
[1736160453014,0.15107493,98868.0,98867.0,0.05059]
[1736160454215,0.15107493,98868.0,98867.0,0.41139]
[1736160454418,0.0318,98874.0,98867.0,0.41139]
[1736160454419,0.15107493,98869.0,98867.0,0.3608]
[1736160454611,0.15107493,98869.0,98868.0,0.05059]
[1736160455810,0.082387,98874.0,98873.0,0.050587]
[1736160457317,0.085387,98874.0,98873.0,0.050587]
[1736160457619,0.086387,98874.0,98873.0,0.050587]
[1736160463415,0.085387,98874.0,98873.0,0.050587]
[1736160464127,0.084387,98874.0,98873.0,0.050587]
[1736160469425,0.050591,98866.0,98865.0,0.05059]
[1736160471221,0.050591,98866.0,98865.0,0.05159]
[1736160471726,0.051591,98866.0,98865.0,0.05159]
[1736160472126,0.050591,98866.0,98865.0,0.05159]
[1736160472530,0.050591,98866.0,98865.0,0.05259]
[1736160472837,0.050591,98866.0,98865.0,0.05159]
[1736160473026,0.050591,98866.0,98865.0,0.05359]
[1736160473627,0.18062862,98873.0,98865.0,0.003]
[1736160473837,0.18062862,98873.0,98872.0,0.050588]
[1736160474429,0.0307,98887.0,98872.0,1.480588]
[1736160474630,0.050578,98892.0,98891.0,0.050577]
[1736160476027,0.058578,98892.0,98891.0,0.051577]
[1736160476433,0.107769,98892.0,98891.0,0.051577]
[1736160477329,0.109769,98892.0,98891.0,0.051577]
[1736160477729,0.107769,98892.0,98891.0,0.051577]
[1736160478931,0.107769,98892.0,98891.0,0.001]
[1736160489845,0.27096998,98892.0,98891.0,0.001]
[1736160490043,0.05058,98886.0,98885.0,0.05052914]
[1736160491044,0.05158,98886.0,98885.0,0.05052914]
[1736160491436,0.103771,98886.0,98885.0,1.48052914]
[1736160493843,0.103771,98886.0,98885.0,0.05052914]
[1736160494037,0.050591,98866.0,98863.0,0.30243722]
[1736160494238,0.050592,98864.0,98863.0,0.30243722]
[1736160495543,0.51189319,98869.0,98859.0,0.3608]
[1736160495751,0.050594,98860.0,98859.0,0.3608]
[1736160497141,0.050594,98860.0,98859.0,0.3628]
[1736160497447,0.050594,98860.0,98859.0,0.3638]
[1736160499554,0.050594,98860.0,98859.0,0.414394]
[1736160499739,0.050594,98860.0,98859.0,1.844394]
[1736160506555,0.12081867,98861.0,98860.0,0.050594]
[1736160507447,0.05059,98867.0,98866.0,0.050591]
[1736160507646,0.15109319,98868.0,98867.0,0.05059]
[1736160507845,0.15109319,98868.0,98867.0,0.08409]
[1736160508041,0.15109319,98868.0,98867.0,0.15019]
[1736160508855,0.001,98868.0,98867.0,0.15019]
[1736160509356,0.002,98868.0,98867.0,0.15019]
[1736160510255,0.002,98868.0,98867.0,1.58019]
[1736160512151,0.12085101,98873.0,98867.0,1.5296]
[1736160512451,0.15109319,98879.0,98878.0,0.050585]
[1736160512657,0.15109319,98879.0,98878.0,0.411385]
[1736160512853,0.12088206,98880.0,98879.0,0.050584]
[1736160513053,0.12088206,98880.0,98879.0,1.480584]
[1736160514156,0.12188206,98880.0,98879.0,1.480584]
[1736160514361,0.001,98880.0,98879.0,1.66236932]
[1736160516056,0.001,98880.0,98879.0,1.66336932]
[1736160517462,0.001,98880.0,98879.0,1.481584]
[1736160525064,0.051584,98880.0,98879.0,1.481584]
[1736160528669,0.001,98880.0,98879.0,1.481584]
[1736160530567,0.001,98880.0,98879.0,1.66336932]
[1736160531866,0.001,98880.0,98879.0,1.481584]
[1736160534462,0.051584,98880.0,98879.0,1.481584]
[1736160535265,0.051584,98880.0,98879.0,0.001]
[1736160538377,0.001,98880.0,98879.0,0.051584]
[1736160538779,0.001,98880.0,98879.0,1.481584]
[1736160541483,0.051584,98880.0,98879.0,1.481584]
[1736160542269,0.051584,98880.0,98879.0,0.051584]
[1736160542675,0.051584,98880.0,98860.0,0.09835546]
[1736160542980,0.050586,98876.0,98875.0,0.050585]
[1736160544982,0.050586,98876.0,98875.0,0.051585]
[1736160545178,0.050586,98876.0,98875.0,0.052585]
[1736160546487,0.09978442,98876.0,98875.0,0.052585]
[1736160547900,0.09978442,98876.0,98875.0,1.482585]
[1736160553585,0.050586,98876.0,98875.0,1.482585]
[1736160554085,0.050586,98876.0,98875.0,0.052585]
[1736160555882,0.050586,98876.0,98875.0,1.482585]
[1736160559601,0.050586,98876.0,98875.0,0.052585]
[1736160560988,0.09978575,98876.0,98875.0,0.052585]
[1736160568502,0.20195475,98876.0,98875.0,0.052585]
[1736160569605,0.050586,98876.0,98875.0,0.052585]
[1736160570807,0.20195475,98876.0,98875.0,0.052585]
[1736160571603,0.15136875,98876.0,98875.0,0.052585]
[1736160574301,0.51312876,98880.0,98875.0,0.052585]
[1736160574502,0.51312876,98880.0,98879.0,0.050584]
[1736160574503,0.51216875,98880.0,98879.0,0.050584]
[1736160575407,0.51216875,98880.0,98879.0,0.23265872]
[1736160576900,0.51316875,98880.0,98879.0,0.23265872]
[1736160577106,0.56896742,98880.0,98879.0,0.050584]
[1736160578704,0.4109962,98880.0,98879.0,0.050584]
[1736160582803,0.51315727,98880.0,98879.0,0.23265872]
[1736160584910,0.15235727,98880.0,98879.0,0.23265872]
[1736160585612,0.15235727,98880.0,98879.0,1.66265872]
[1736160586511,0.001,98880.0,98879.0,1.480584]
[1736160588008,0.001,98880.0,98879.0,1.72325699]
[1736160589619,0.001,98880.0,98879.0,1.480584]
[1736160590925,0.001,98880.0,98879.0,1.66255619]
[1736160593621,0.12195395,98880.0,98879.0,1.66255619]
[1736160596412,0.001,98880.0,98879.0,1.66255619]
[1736160597619,0.001,98880.0,98879.0,1.480584]
[1736160600619,0.001,98880.0,98879.0,1.72325699]
[1736160602425,0.051584,98880.0,98879.0,1.72325699]
[1736160607322,0.051584,98880.0,98879.0,1.480584]
[1736160610217,0.001,98880.0,98879.0,1.480584]
[1736160624341,0.18162873,98894.0,98880.0,0.050584]
[1736160624642,0.18162873,98894.0,98893.0,0.050577]
[1736160625038,0.18162873,98894.0,98893.0,1.480577]
[1736160626144,0.12123224,98895.0,98894.0,0.050576]
[1736160627646,0.17180624,98898.0,98897.0,0.050575]
[1736160628935,0.050574,98898.0,98897.0,0.050575]
[1736160629135,0.058574,98898.0,98897.0,0.051575]
[1736160629537,0.061574,98898.0,98897.0,0.051575]
[1736160633039,0.061574,98898.0,98897.0,0.001]
[1736160634544,0.11076548,98898.0,98897.0,0.001]
[1736160636042,0.26487627,98898.0,98897.0,0.001]
[1736160636344,0.26487627,98898.0,98897.0,8.49e-06]
[1736160637147,0.050578,98890.0,98889.0,0.050579]
[1736160638346,0.052578,98890.0,98889.0,0.050579]
[1736160638660,0.057578,98890.0,98889.0,0.050579]
[1736160639149,0.10676948,98890.0,98889.0,0.050579]
[1736160643857,0.057578,98890.0,98889.0,0.050579]
[1736160648960,0.05058,98887.0,98886.0,0.23251779]
[1736160649956,0.05058,98887.0,98886.0,0.18193779]
[1736160650459,0.05458,98887.0,98886.0,0.18193779]
[1736160650658,0.050581,98885.0,98884.0,0.050581]
[1736160651858,0.051581,98885.0,98884.0,0.050581]
[1736160652057,0.10077414,98885.0,98884.0,0.050581]
[1736160653063,0.10377414,98885.0,98884.0,0.050581]
[1736160653662,0.1134681,98885.0,98884.0,0.050581]
[1736160657653,0.050584,98879.0,98878.0,0.54329779]
[1736160657859,0.050584,98879.0,98878.0,0.54273779]
[1736160658257,0.050587,98874.0,98873.0,0.30334124]
[1736160659467,0.050587,98873.0,98872.0,0.18200713]
[1736160659766,0.05059,98868.0,98867.0,0.24267617]
[1736160660971,0.050593,98862.0,98861.0,0.30334124]
[1736160661163,0.050598,98851.0,98850.0,0.24262058]
[1736160662165,0.0506,98847.0,98845.0,0.050601]
[1736160662571,0.0506,98847.0,98846.0,0.411401]
[1736160663568,0.0516,98847.0,98846.0,0.418401]
[1736160664368,0.0516,98847.0,98846.0,0.057601]
[1736160664570,0.0516,98847.0,98846.0,0.060601]
[1736160665272,0.0516,98847.0,98846.0,1.490601]
[1736160668272,0.0516,98847.0,98846.0,1.44]
[1736160668470,0.4124,98847.0,98846.0,1.44]
[1736160670174,0.4124,98847.0,98846.0,1.490601]
[1736160672377,0.4114,98847.0,98846.0,1.486601]
[1736160672771,0.4114,98847.0,98846.0,1.484601]
[1736160674278,0.4114,98847.0,98846.0,0.054601]
[1736160678985,0.4114,98847.0,98846.0,0.004]
[1736160679384,0.4114,98847.0,98846.0,0.003]
[1736160679681,0.4114,98847.0,98846.0,0.001]
[1736160680480,0.4114,98847.0,98846.0,0.051601]
[1736160684978,0.50201093,98847.0,98846.0,0.051601]
[1736160686289,0.4114,98847.0,98846.0,0.051601]
[1736160690091,0.46061455,98847.0,98846.0,0.051601]
[1736160692989,0.46061455,98847.0,98846.0,0.001]
[1736160699191,0.46061455,98847.0,98846.0,0.051601]
[1736160699593,0.6422547,98847.0,98846.0,0.051601]
[1736160703391,0.6422547,98847.0,98846.0,0.001]
[1736160704992,0.46061455,98847.0,98846.0,0.001]
[1736160705193,0.46061455,98847.0,98846.0,0.051601]
[1736160706993,0.04921455,98847.0,98846.0,0.412401]
[1736160707203,0.050591,98867.0,98866.0,0.05059]
[1736160708703,0.20425581,98867.0,98866.0,0.05059]
[1736160709204,0.050591,98866.0,98865.0,0.3608]
[1736160710700,0.002,98867.0,98862.0,0.050593]
[1736160711008,0.050592,98863.0,98862.0,0.050593]
[1736160711200,0.050593,98861.0,98860.0,1.43052]
[1736160711401,0.050595,98858.0,98857.0,0.3608]
[1736160712098,0.050597,98853.0,98852.0,0.0356]
[1736160712405,0.050597,98853.0,98846.0,0.66474124]
[1736160712406,0.0506,98847.0,98846.0,0.66474124]
[1736160712607,0.0506,98847.0,98846.0,0.66414124]
[1736160713507,0.0506,98847.0,98846.0,0.3608]
[1736160715208,0.0506,98847.0,98846.0,0.3618]
[1736160715404,0.0506,98847.0,98846.0,0.412401]
[1736160715609,0.14140598,98847.0,98846.0,0.412401]
[1736160716403,0.14140598,98847.0,98846.0,0.051601]
[1736160716801,0.0506,98847.0,98846.0,0.051601]
[1736160723716,0.0506,98847.0,98846.0,1.481601]
[1736160727913,0.0506,98847.0,98846.0,0.001]
[1736160729114,0.06047474,98847.0,98846.0,0.001]
[1736160734421,0.09317474,98847.0,98846.0,0.001]
[1736160743316,0.14239196,98847.0,98846.0,0.001]
[1736160758941,0.09981722,98847.0,98846.0,0.051601]
[1736160764729,0.09981722,98847.0,98846.0,0.001]
[1736160769442,0.09981722,98847.0,98846.0,0.051601]
[1736160770540,0.0506,98847.0,98846.0,0.051601]
[1736160771838,0.20210526,98847.0,98846.0,0.051601]
[1736160773141,0.0506,98847.0,98846.0,0.051601]
[1736160773733,0.0506,98847.0,98846.0,0.001]
[1736160777748,0.20210526,98847.0,98846.0,0.001]
[1736160780944,0.20210526,98847.0,98846.0,0.051601]
[1736160781740,0.20210526,98847.0,98846.0,0.23371867]
[1736160782353,0.20210526,98847.0,98846.0,0.59451867]
[1736160782651,0.20210526,98847.0,98846.0,2.02451867]
[1736160783642,0.0506,98847.0,98846.0,1.842401]
[1736160784848,0.0506,98847.0,98846.0,0.412401]
[1736160789949,0.0506,98847.0,98846.0,0.65520725]
[1736160792551,0.0506,98847.0,98846.0,0.412401]
[1736160800854,0.0506,98847.0,98846.0,1.842401]
[1736160801561,0.0506,98847.0,98846.0,2.08520725]
[1736160801956,0.0506,98847.0,98846.0,0.65520725]
[1736160802752,0.0506,98847.0,98846.0,0.412401]
[1736160807765,0.0506,98847.0,98846.0,0.65520725]
[1736160811656,0.0506,98847.0,98846.0,0.24380625]
[1736160813260,0.09981672,98847.0,98846.0,0.001]
[1736160813660,0.13291672,98847.0,98846.0,0.001]
[1736160817867,0.050608,98833.0,98832.0,0.050608]
[1736160818768,0.050608,98833.0,98832.0,0.2327715]
[1736160819360,0.050608,98833.0,98832.0,0.2337715]
[1736160820263,0.050608,98833.0,98832.0,0.051608]
[1736160821772,0.17173007,98833.0,98832.0,0.051608]
[1736160822471,0.17173007,98833.0,98832.0,0.001]
[1736160822767,0.050611,98829.0,98828.0,0.05061]
[1736160825975,0.050611,98829.0,98828.0,0.05361]
[1736160826475,0.050611,98829.0,98828.0,0.05461]
[1736160826867,0.050611,98829.0,98828.0,0.05361]
[1736160827066,0.050611,98829.0,98828.0,0.05261]
[1736160828374,0.050611,98829.0,98828.0,0.05161]
[1736160828575,0.050611,98829.0,98828.0,0.05261]
[1736160829270,0.050611,98829.0,98828.0,0.05361]
[1736160829871,0.050611,98829.0,98828.0,0.05461]
[1736160830378,0.050611,98829.0,98828.0,0.05261]
[1736160830575,0.050611,98829.0,98828.0,0.05461]
[1736160834280,0.050611,98829.0,98828.0,0.23652092]
[1736160835969,0.1413622,98829.0,98828.0,0.05461]
[1736160837377,0.050611,98829.0,98828.0,0.05461]
[1736160841282,0.050611,98829.0,98828.0,0.29741625]
[1736160842880,0.050611,98829.0,98828.0,0.05461]
[1736160844475,0.17184738,98829.0,98828.0,0.05461]
[1736160844875,0.12123638,98829.0,98828.0,0.05461]
[1736160845079,0.15140558,98836.0,98828.0,0.41541]
[1736160845280,0.15140558,98836.0,98835.0,0.050607]
[1736160845484,0.15140558,98836.0,98835.0,0.411407]
[1736160845686,0.02299321,98836.0,98835.0,0.411407]
[1736160846087,0.1816867,98843.0,98842.0,0.050603]
[1736160846282,0.04921243,98850.0,98849.0,0.050599]
[1736160846488,0.04921243,98850.0,98849.0,0.411399]
[1736160847995,0.050594,98859.0,98849.0,0.3608]
[1736160848193,0.050594,98859.0,98858.0,0.411393]
[1736160849290,0.050594,98859.0,98858.0,0.59322708]
[1736160849490,0.054594,98859.0,98858.0,0.59322708]
[1736160850388,0.055594,98859.0,98858.0,0.59322708]
[1736160850694,0.055594,98859.0,98858.0,0.411393]
[1736160851693,0.051594,98859.0,98858.0,0.412393]
[1736160852089,0.050594,98859.0,98858.0,0.412393]
[1736160852290,0.050594,98859.0,98858.0,0.411393]
[1736160852495,0.050594,98859.0,98858.0,0.412393]
[1736160853492,0.3608,98878.0,98867.0,0.05059]
[1736160853794,0.050591,98868.0,98867.0,0.41139]
[1736160854895,0.050591,98868.0,98867.0,0.05059]
[1736160855192,0.050591,98868.0,98867.0,0.3608]
[1736160856490,0.052591,98868.0,98867.0,0.3608]
[1736160857196,0.053591,98868.0,98867.0,0.3608]
[1736160865305,0.053591,98868.0,98867.0,0.41139]
[1736160872010,0.003,98868.0,98867.0,0.41139]
[1736160873209,0.003,98868.0,98867.0,1.84139]
[1736160875013,0.003,98868.0,98867.0,0.41139]
[1736160877104,0.002,98868.0,98867.0,0.41139]
[1736160877708,0.09091976,98869.0,98868.0,0.05059]
[1736160879015,0.050588,98871.0,98867.0,0.3618]
[1736160879212,0.050588,98871.0,98870.0,0.050589]
[1736160880518,0.050588,98871.0,98870.0,0.29319378]
[1736160880711,0.050588,98871.0,98870.0,0.29419378]
[1736160881314,0.050588,98871.0,98870.0,0.29519378]
[1736160881914,0.050586,98875.0,98874.0,0.050586]
[1736160882713,0.050588,98871.0,98870.0,0.24460478]
[1736160883112,0.050588,98871.0,98870.0,0.24360478]
[1736160883712,0.050588,98871.0,98870.0,0.001]
[1736160883911,0.050588,98871.0,98870.0,0.002]
[1736160884314,0.0366,98874.0,98867.0,0.3608]
[1736160884619,0.05059,98870.0,98869.0,0.050589]
[1736160885224,0.20216007,98870.0,98869.0,0.23258388]
[1736160886532,0.20316007,98870.0,98869.0,0.23258388]
[1736160886731,0.05159,98870.0,98869.0,0.23258388]
[1736160887736,0.05159,98870.0,98869.0,0.23358388]
[1736160888136,0.0614207,98870.0,98869.0,0.23358388]
[1736160889128,0.0604207,98870.0,98869.0,0.23358388]
[1736160890842,0.0604207,98870.0,98869.0,0.051589]
[1736160892535,0.05059,98870.0,98869.0,0.051589]
[1736160893425,0.15157007,98876.0,98875.0,0.050586]
[1736160893637,0.122385,98877.0,98875.0,0.3608]
[1736160893638,0.086985,98877.0,98875.0,0.3608]
[1736160894038,0.086985,98877.0,98876.0,1.43]
[1736160894930,0.0364,98877.0,98876.0,1.480586]
[1736160895432,0.0364,98877.0,98876.0,0.050586]
[1736160896037,0.0384,98877.0,98876.0,0.050586]
[1736160896427,0.088985,98877.0,98876.0,0.050586]
[1736160896741,0.087985,98877.0,98876.0,0.050586]
[1736160897042,0.09805824,98877.0,98876.0,0.050586]
[1736160898337,0.04747324,98877.0,98872.0,0.24260478]
[1736160898540,0.050587,98873.0,98872.0,0.24260478]
[1736160899232,0.086187,98873.0,98872.0,0.24260478]
[1736160899435,0.31707433,98873.0,98864.0,0.3608]
[1736160899643,0.050591,98865.0,98864.0,0.3608]
[1736160900241,0.050591,98865.0,98864.0,0.411392]
[1736160901240,0.20227828,98865.0,98864.0,0.411392]
[1736160901443,0.20327828,98865.0,98864.0,0.411392]
[1736160901645,0.20427828,98865.0,98864.0,0.411392]
[1736160902443,0.20527828,98865.0,98864.0,0.411392]
[1736160902846,0.21346644,98865.0,98864.0,0.411392]
[1736160903045,0.21446644,98865.0,98864.0,0.411392]
[1736160903438,0.21346644,98865.0,98864.0,0.411392]
[1736160903638,0.21446644,98865.0,98864.0,0.411392]
[1736160904242,0.21346644,98865.0,98864.0,0.411392]
[1736160904445,0.21446644,98865.0,98864.0,0.411392]
[1736160905747,0.06277916,98865.0,98864.0,0.411392]
[1736160906639,0.06177916,98865.0,98864.0,0.411392]
[1736160908248,0.06077916,98865.0,98864.0,0.411392]
[1736160908550,0.050591,98865.0,98864.0,0.411392]
[1736160909050,0.051591,98865.0,98864.0,0.411392]
[1736160910942,0.001,98865.0,98864.0,0.411392]
[1736160911748,0.0100218,98866.0,98865.0,0.050591]
[1736160911948,0.12135924,98867.0,98864.0,0.3608]
[1736160912148,0.13152435,98867.0,98866.0,0.050591]
[1736160912738,0.01016511,98867.0,98866.0,0.050591]
[1736160912944,0.05059,98868.0,98867.0,0.05059]
[1736160914848,0.05059,98868.0,98867.0,0.05159]
[1736160915044,0.05059,98868.0,98867.0,0.05359]
[1736160916353,0.06056369,98868.0,98867.0,0.05359]
[1736160918250,0.06056369,98868.0,98867.0,0.003]
[1736160918649,0.050594,98860.0,98859.0,0.30334124]
[1736160919251,0.050598,98851.0,98850.0,0.36400949]
[1736160919457,0.050607,98834.0,98833.0,0.05212534]
[1736160919663,0.050607,98834.0,98833.0,0.00151734]
[1736160921247,0.050607,98834.0,98833.0,0.00451734]
[1736160921759,0.050607,98834.0,98833.0,0.01251734]
[1736160921760,0.051607,98834.0,98833.0,0.01251734]
[1736160922147,0.051607,98834.0,98833.0,0.06312534]
[1736160938958,0.051607,98834.0,98833.0,0.05512534]
[1736160939362,0.052607,98834.0,98833.0,0.05212534]
[1736160945664,0.050607,98834.0,98833.0,0.05312534]
[1736160945864,0.050607,98834.0,98833.0,0.05412534]
[1736160947678,0.17164287,98834.0,98833.0,0.05412534]
[1736160947882,0.17164287,98834.0,98833.0,0.05312534]
[1736160948375,0.17164287,98834.0,98833.0,0.05412534]
[1736160948777,0.17164287,98834.0,98833.0,0.05312534]
[1736160949173,0.050607,98834.0,98833.0,0.05312534]
[1736160950476,0.050607,98834.0,98833.0,0.05512534]
[1736160950874,0.20190184,98834.0,98833.0,0.05512534]
[1736160951076,0.20190184,98834.0,98833.0,0.05412534]
[1736160952473,0.050607,98834.0,98833.0,0.05412534]
[1736160957181,0.050607,98834.0,98833.0,0.05312534]
[1736160957382,0.050607,98834.0,98833.0,0.05412534]
[1736160957888,0.050607,98834.0,98833.0,0.05312534]
[1736160958088,0.050607,98834.0,98833.0,0.05412534]
[1736160961092,0.20190184,98834.0,98833.0,0.05412534]
[1736160964092,0.20190184,98834.0,98833.0,0.05312534]
[1736160965293,0.050607,98834.0,98833.0,0.05312534]
[1736160966784,0.050607,98834.0,98833.0,0.23532]
[1736160968496,0.09982559,98834.0,98833.0,0.05312534]
[1736160969894,0.050607,98834.0,98833.0,0.05312534]
[1736160972705,0.09982579,98834.0,98833.0,0.05312534]
[1736160982910,0.09982579,98834.0,98833.0,0.00251734]
[1736160993918,0.09982579,98834.0,98833.0,0.001]
[1736161000124,0.09982579,98834.0,98833.0,0.18325776]
[1736161003326,0.09982579,98834.0,98833.0,0.001]
[1736161007426,0.09982579,98834.0,98833.0,0.051608]
[1736161010924,0.04921879,98834.0,98833.0,0.412408]
[1736161011524,0.04921879,98834.0,98833.0,1.842408]
[1736161012433,0.09982579,98834.0,98833.0,1.842408]
[1736161012933,0.050607,98834.0,98833.0,1.842408]
[1736161014938,0.050607,98834.0,98833.0,0.412408]
[1736161020234,0.050607,98834.0,98833.0,0.001]
[1736161020439,0.050612,98824.0,98823.0,0.30363396]
[1736161021438,0.118012,98824.0,98823.0,0.30363396]
[1736161021830,0.118012,98824.0,98813.0,0.3608]
[1736161021831,0.050615,98819.0,98818.0,0.18214659]
[1736161023835,0.050615,98819.0,98818.0,0.18414659]
[1736161024539,0.050615,98819.0,98818.0,0.002]
[1736161024740,0.050615,98819.0,98818.0,0.003]
[1736161029747,0.1715955,98819.0,98818.0,0.003]
[1736161035450,0.050615,98819.0,98818.0,0.003]
[1736161036550,0.1715955,98819.0,98818.0,0.003]
[1736161037446,0.050615,98819.0,98818.0,0.003]
[1736161040351,0.050615,98819.0,98818.0,0.001]
[1736161040550,0.050615,98819.0,98818.0,0.002]
[1736161044658,0.050615,98819.0,98808.0,0.05062]
[1736161044659,0.05062,98809.0,98808.0,0.05062]
[1736161046548,0.05062,98809.0,98808.0,0.05262]
[1736161046954,0.05162,98809.0,98808.0,0.05762]
[1736161047863,0.05162,98809.0,98808.0,1.48762]
[1736161048563,0.05162,98809.0,98808.0,0.05762]
[1736161050559,0.05162,98809.0,98808.0,0.007]
[1736161050873,0.20304923,98809.0,98808.0,0.007]
[1736161052075,0.05162,98809.0,98808.0,0.007]
[1736161054880,0.05162,98809.0,98808.0,0.005]
[1736161055080,0.05162,98809.0,98808.0,0.007]
[1736161055277,0.20304923,98809.0,98808.0,0.007]
[1736161056085,0.20204923,98809.0,98808.0,0.005]
[1736161056581,0.20204923,98809.0,98808.0,0.003]
[1736161056778,0.05062,98809.0,98808.0,0.004]
[1736161060784,0.11752,98809.0,98808.0,0.004]
[1736161062778,0.16675788,98809.0,98808.0,0.004]
[1736161062978,0.050626,98797.0,98796.0,0.18211738]
[1736161063185,0.411426,98797.0,98796.0,0.18211738]
[1736161064184,0.412426,98797.0,98796.0,0.19111738]
[1736161064387,0.56373663,98797.0,98796.0,0.009]
[1736161065788,0.412426,98797.0,98796.0,0.009]
[1736161066376,0.42273979,98797.0,98796.0,0.009]
[1736161071891,0.42273979,98797.0,98796.0,0.007]
[1736161072391,0.42173979,98797.0,98796.0,0.003]
[1736161072586,0.42173979,98797.0,98796.0,0.002]
[1736161072785,0.42173979,98797.0,98787.0,0.18211738]
[1736161072984,0.050631,98788.0,98787.0,0.18211738]
[1736161073188,0.050631,98788.0,98786.0,0.18211738]
[1736161073383,0.050631,98787.0,98786.0,0.18211738]
[1736161073996,0.050631,98787.0,98786.0,1.61211738]
[1736161077095,0.050631,98787.0,98786.0,0.18211738]
[1736161077993,0.050633,98783.0,98782.0,0.050634]
[1736161079594,0.050633,98783.0,98782.0,0.23275138]
[1736161080894,0.050633,98783.0,98782.0,0.050634]
[1736161082188,0.050633,98783.0,98782.0,0.23275138]
[1736161085998,0.050633,98783.0,98782.0,0.050634]
[1736161086596,0.050634,98782.0,98781.0,1.43203801]
[1736161086791,0.050634,98782.0,98781.0,0.00151801]
[1736161090891,0.050634,98782.0,98781.0,0.18365298]
[1736161092602,0.050634,98782.0,98781.0,0.00251801]
[1736161093201,0.050634,98782.0,98781.0,0.00451801]
[1736161095697,0.411434,98782.0,98781.0,0.00451801]
[1736161096601,0.4606805,98782.0,98781.0,0.00451801]
[1736161098396,0.050637,98775.0,98774.0,0.23288573]
[1736161098599,0.050637,98775.0,98774.0,0.24871721]
[1736161099104,0.050637,98775.0,98774.0,0.06646948]
[1736161099704,0.050637,98775.0,98774.0,0.06746948]
[1736161100099,0.050637,98775.0,98774.0,0.01683148]
[1736161100297,0.050639,98771.0,98770.0,0.24286212]
[1736161100500,0.050644,98762.0,98761.0,0.30363396]
[1736161100699,0.411444,98762.0,98761.0,0.30363396]
[1736161102407,0.050648,98754.0,98753.0,0.18208057]
[1736161103598,0.050651,98748.0,98747.0,0.411451]
[1736161103908,0.12084556,98754.0,98753.0,0.050649]
[1736161104098,0.12184556,98754.0,98753.0,0.050649]
[1736161104294,0.12584556,98754.0,98753.0,1.480649]
[1736161104809,0.12484556,98754.0,98753.0,1.480649]
[1736161105011,0.004,98754.0,98753.0,1.480649]
[1736161105605,0.1412526,98755.0,98753.0,1.43]
[1736161105803,0.1412526,98755.0,98754.0,0.050648]
[1736161106205,0.050648,98755.0,98754.0,0.050648]
[1736161107409,0.050648,98755.0,98754.0,0.051648]
[1736161108408,0.050648,98755.0,98754.0,0.084948]
[1736161110713,0.050648,98755.0,98754.0,0.083948]
[1736161110912,0.050648,98755.0,98754.0,0.084948]
[1736161112606,0.050648,98755.0,98754.0,0.10078194]
[1736161116816,0.050636,98778.0,98754.0,0.05013394]
[1736161117018,0.050639,98772.0,98771.0,0.411439]
[1736161118108,0.050639,98772.0,98771.0,0.050639]
[1736161118907,0.054639,98772.0,98771.0,0.411439]
[1736161119413,0.053639,98772.0,98771.0,0.411439]
[1736161119814,0.054639,98772.0,98771.0,0.411439]